[Event "Chessable English Open-ch 2022"]
[Site "Kenilwoth"]
[Date "2022.05.20"]
[Round "3.2"]
[White "Hebden, Mark L"]
[Black "Ashton, Adam G"]
[Result "1-0"]
[ECO "D66"]
[WhiteElo "2452"]
[BlackElo "2366"]
[Annotator "TA"]
[PlyCount "59"]
[EventDate "2022.05.18"]
[EventType "swiss"]
[EventCountry "ENG"]
[SourceTitle "playchess.com"]
[Source "ChessBase"]
[SourceQuality "1"]
[TimeControl "5400+30"]

{[%evp 24,59,19,20,43,28,61,85,86,51,133,121,130,122,204,206,200,206,245,243,238,239,247,254,258,258,268,268,336,308,310,242,261,271,676,614,1116,1088]} 1. d4 {[%emt 0:00:07]} d5 {[%emt 0:03:23]} 2. c4 {[%emt 0:01:04]} e6 {[%emt 0:00:20]} 3. Nc3 {[%emt 0:00:27]} Nf6 {[%emt 0:00:48]} 4. Bg5 {[%emt 0:00:43]} Be7 {[%emt 0:00:55]} 5. e3 {[%emt 0:00:47]} Nbd7 {[%emt 0:00:53]} 6. Rc1 {[%emt 0:03:07]} O-O {[%emt 0:04:19]} 7. Nf3 {[%emt 0:03:00]} h6 {[%emt 0:01:08]} 8. Bh4 {[%emt 0:00:56]} c6 {[%emt 0:00:46]} 9. Bd3 {[%emt 0:03:08]} dxc4 {[%emt 0:02:38]} 10. Bxc4 {[%emt 0:00:08]} b5 {[%emt 0:00:12]} 11. Bd3 {[%emt 0:00:07]} a6 {[%emt 0:07:10] 11...Bb7 is the hot move.} 12. a4 {[%emt 0:04:02]} Bb7 {[%emt 0:03:14]} 13. O-O {[%emt 0:00:57]} Rc8 {[%emt 0:04:17] D66: Queen's Gambit Declined: Classical: Main Line (7 Rc1 c6 8 Bd3).} 14. Qe2 {[%emt 0:04:13]} Qb6 {[%emt 0:17:51]} 15. Ne5 {[%emt 0:05:28] [#] Threatens to win with Nxd7.} Rfe8 {[%emt 0:08:41] White is better.} 16. Rfd1 {[%emt 0:06:22]} ({Much worse is} 16. axb5 cxb5 17. f4 Rc7 $14) 16... b4 {[%emt 0:05:28]} ({Black should play} 16... Nxe5 $14 17. dxe5 Nd7 18. Bxe7 Rxe7) 17. Bxf6 $16 {[%emt 0:06:12] White is much more active.} Nxf6 {[%emt 0:00:31] [#]} 18. Ne4 $146 {[%emt 0:00:58] Pair of Knights!} ({Predecessor:} 18. Nb1 c5 19. Nd2 cxd4 20. Ndc4 Qd8 21. exd4 Bf8 22. Bb1 Qe7 23. f4 Red8 24. Kh1 {0-1 (39) Starcic,T (2242)-Brinovec,D (2178) Dobrna 2002}) 18... Red8 {[%emt 0:15:33]} (18... Nxe4 $16 {was called for.} 19. Bxe4 Bf8) 19. Nc5 $18 {[%emt 0:01:36]} Bxc5 {[%emt 0:01:03]} 20. Rxc5 {[%emt 0:00:22]} Nd7 {[%emt 0:06:22]} 21. Nxd7 {[%emt 0:01:54]} Rxd7 {[%emt 0:00:02]} 22. a5 {[%emt 0:00:19]} Qa7 {[%emt 0:03:46]} 23. Be4 {[%emt 0:00:28]} Rb8 {[%emt 0:01:37]} 24. Rdc1 {[%emt 0:01:11]} ({Don't do} 24. Bxc6 $6 Bxc6 25. Rxc6 Rb5 $16) 24... Rd6 {[%emt 0:02:36]} 25. h4 {[%emt 0:00:51]} ({Much less strong is} 25. Bxc6 $6 Rxc6 26. Rxc6 Bxc6 $18) 25... Ba8 {[%emt 0:00:19]} 26. Bd3 {[%emt 0:00:34]} Bb7 {[%emt 0:02:11]} 27. Qd2 {[%emt 0:00:52]} Rd5 {[%emt 0:01:55]} 28. Qxb4 {[%emt 0:03:41] Black must now prevent Rxd5.} Bc8 $2 {[%emt 0:00:19] [#]} (28... Rd6 29. Be4 Ba8) 29. Rxc6 $1 {[%emt 0:02:09]} Bd7 {[%emt 0:01:13]} (29... Rd8 30. Rb6) 30. Qe7 {[%emt 0:05:00] Weighted Error Value: White=0.07 (flawless) /Black=0.56} 1-0

[Event "Chessable English Open-ch 2022"]
[Site "Kenilwoth"]
[Date "2022.05.20"]
[Round "3.3"]
[White "Royal, Shreyas"]
[Black "Harvey, Marcus R"]
[Result "1/2-1/2"]
[ECO "E05"]
[WhiteElo "2385"]
[BlackElo "2455"]
[Annotator "TA"]
[PlyCount "80"]
[EventDate "2022.05.18"]
[EventType "swiss"]
[EventCountry "ENG"]
[SourceTitle "playchess.com"]
[Source "ChessBase"]
[SourceQuality "1"]
[TimeControl "5400+30"]

{[%evp 13,80,7,21,9,2,0,7,-1,7,0,6,-5,16,9,29,29,58,58,54,58,52,0,0,0,0,-6,21,-1,-1,-1,-1,-1,-1,-13,-3,-3,-3,-11,-9,-9,-9,-9,39,35,40,37,44,33,70,72,118,118,141,13,13,13,13,13,9,0,362,0,0,0,367,0,0,0,292]} 1. d4 {[%emt 0:00:02]} Nf6 {[%emt 0:00:37]} 2. c4 {[%emt 0:00:08]} e6 {[%emt 0:00:04]} 3. Nf3 {[%emt 0:00:05]} d5 {[%emt 0:01:09]} 4. g3 {[%emt 0:00:07]} Be7 {[%emt 0:00:04]} 5. Bg2 {[%emt 0:00:08]} O-O {[%emt 0:00:06]} 6. O-O {[%emt 0:00:05]} dxc4 {[%emt 0:00:02]} 7. Qc2 {[%emt 0:00:14]} b5 {[%emt 0:00:05]} 8. a4 {[%emt 0:00:41] E05: Open Catalan: 5 Nf3 Be7.} b4 {[%emt 0:00:12]} 9. Nbd2 {[%emt 0:00:39][%cal Bb1d2,Bd2c4,Bc4e5][%mdl 32]} Bb7 {[%emt 0:00:34]} 10. Rd1 {[%emt 0:03:34]} c5 {[%emt 0:08:17]} 11. Nxc4 {[%emt 0:06:15]} Nbd7 {[%emt 0:01:19]} 12. Bf4 {[%emt 0:09:00]} Be4 {[%emt 0:10:36]} 13. Qd2 {[%emt 0:06:17]} Nb6 {[%emt 0:00:46] [#]} 14. Nce5 $146 {[%emt 0:02:51]} ({Predecessor:} 14. Na5 c4 15. Ne5 Bxg2 16. Kxg2 Qd5+ 17. f3 Rac8 18. Nac6 Rxc6 19. a5 Nbd7 20. Nxc6 Qxc6 {0-1 (31) Maghsoodloo,P (2695)-Kezin,R (2492) Chess.com INT 2021}) 14... a5 {[%emt 0:11:06]} 15. dxc5 {[%emt 0:04:13]} Bxc5 {[%emt 0:00:40]} 16. Qxd8 {[%emt 0:02:05]} Rfxd8 {[%emt 0:07:23]} 17. Nd2 {[%emt 0:07:09]} ({White should play} 17. Rxd8+ $14 Rxd8 18. Nxf7 $1 Kxf7 19. Ng5+ Ke7 20. Nxe4) 17... Bxg2 $11 {[%emt 0:02:45]} 18. Kxg2 {[%emt 0:00:13]} (18. Nb3 {feels hotter.} Rxd1+ 19. Rxd1 Nxa4 20. Kxg2 Nxb2 21. Rb1) 18... Nfd5 {[%emt 0:09:33]} 19. Nb3 {[%emt 0:04:21] Prevents Bd4.} Bf8 {[%emt 0:04:58]} 20. Nc6 {[%emt 0:13:30]} Nxf4+ {[%emt 0:01:04]} 21. gxf4 {[%emt 0:00:04]} Rxd1 {[%emt 0:00:18]} 22. Rxd1 {[%emt 0:00:04]} Nxa4 {[%emt 0:03:45]} 23. Rd2 {[%emt 0:00:05]} Nxb2 {[%emt 0:03:44]} 24. Rxb2 {[%emt 0:01:22]} a4 {[%emt 0:00:10]} 25. Nba5 {[%emt 0:05:08]} Ra6 {[%emt 0:01:10]} 26. Ra2 $1 {[%emt 0:01:17]} a3 {[%emt 0:05:58][%cal Oa6c6]} 27. Rc2 {[%emt 0:00:16]} g5 {[%emt 0:02:13]} (27... h6 $11) 28. fxg5 $14 {[%emt 0:02:30]} Bg7 {[%emt 0:01:40]} 29. Nb3 {[%emt 0:02:06]} Bc3 {[%emt 0:01:44]} 30. Nca5 {[%emt 0:00:08]} Kf8 {[%emt 0:01:39]} 31. Kf3 {[%emt 0:00:23]} Ke7 {[%emt 0:00:50]} (31... Kg7 $142) 32. Ke4 $16 {[%emt 0:00:24]} Kd6 {[%emt 0:00:42] [#]} 33. Nb7+ {[%emt 0:06:00]} (33. Ra2 $1 $16) 33... Kc6 $11 {[%emt 0:04:22]} 34. N7c5 {[%emt 0:00:05]} Ra8 {[%emt 0:00:31]} 35. Ke3 {[%emt 0:03:06]} Kb5 {[%emt 0:05:36] Hoping for ...Kc4.} 36. Ne4 {[%emt 0:00:22]} Ka4 $2 {[%emt 0:00:51][%mdl 8192]} (36... Rd8 $11) 37. Nec5+ {[%emt 0:00:26]} Kb5 {[%emt 0:00:05] ...Kc4 is the strong threat.} 38. Ne4 {[%emt 0:00:03]} Ka4 {[%emt 0:06:30]} 39. Nec5+ {[%emt 0:00:04]} Kb5 {[%emt 0:00:05] Strongly threatening ...Kc4.} 40. Ne4 {[%emt 0:00:32]} Ka4 {[%emt 0:01:28][%mdl 32768] Weighted Error Value: White=0.36/Black=0.31. An unexpected result.} 1/2-1/2

[Event "Chessable English Open-ch 2022"]
[Site "Kenilwoth"]
[Date "2022.05.20"]
[Round "3.4"]
[White "Pert, Richard G"]
[Black "Wells, Peter K"]
[Result "1/2-1/2"]
[ECO "D02"]
[WhiteElo "2415"]
[BlackElo "2374"]
[Annotator "TA"]
[PlyCount "45"]
[EventDate "2022.05.18"]
[EventType "swiss"]
[EventCountry "ENG"]
[SourceTitle "playchess.com"]
[Source "ChessBase"]
[SourceQuality "1"]
[TimeControl "5400+30"]

{[%evp 9,45,-4,14,8,16,12,16,0,0,0,0,1,6,11,6,-9,-2,0,14,0,18,-19,20,0,15,4,11,8,18,-14,6,0,0,0,0,-23,-23,-22]} 1. d4 {[%emt 0:00:03]} Nf6 {[%emt 0:05:21]} 2. Nf3 {[%emt 0:00:06]} d5 {[%emt 0:00:20]} 3. Bf4 {[%emt 0:00:21]} c5 {[%emt 0:01:21]} 4. e3 {[%emt 0:00:16]} Nc6 {[%emt 0:01:00]} 5. Nbd2 {[%emt 0:00:18]} cxd4 {[%emt 0:13:28]} 6. exd4 {[%emt 0:00:25] D02: 1 d4 d5 2 Nf3 sidelines, including 2...Nf6 3 g3 and 2...Nf6 3 Bf4.} Qb6 {[%emt 0:01:15]} 7. Nb3 {[%emt 0:03:06]} Bg4 {[%emt 0:04:09] 7...Bf5 injects fresh life into this line.} 8. Be2 {[%emt 0:01:55] The position is equal.} e6 {[%emt 0:05:33]} 9. O-O {[%emt 0:00:20]} Be7 {[%emt 0:00:59]} 10. h3 {[%emt 0:03:44]} Bh5 {[%emt 0:00:33]} 11. a4 {[%emt 0:02:30]} a5 {[%emt 0:20:28]} 12. Ne5 {[%emt 0:14:11]} Bxe2 {[%emt 0:00:58]} 13. Qxe2 {[%emt 0:00:05] [#]} O-O $146 {[%emt 0:00:28]} ({Predecessor:} 13... Nxe5 14. dxe5 Nd7 15. Qg4 g6 16. Bh6 Nxe5 17. Qe2 f6 18. Rfe1 Kf7 19. Rad1 Rhe8 {1-0 (36) Agrest,E (2593)-Jensson,E (2386) Chess.com INT 2017}) 14. Qb5 {[%emt 0:07:04]} Qa6 {[%emt 0:12:50]} 15. c3 {[%emt 0:21:38]} Rfc8 {[%emt 0:01:21]} 16. Bg5 {[%emt 0:01:53]} Rc7 {[%emt 0:06:17]} 17. Rfe1 {[%emt 0:02:20]} Qa7 {[%emt 0:03:04]} 18. Bf4 {[%emt 0:08:37][%cal Oe5f7] [#] And now Nxf7! would win.} Rcc8 {[%emt 0:04:12]} 19. Rad1 {[%emt 0:03:51]} Ne8 {[%emt 0:06:32][%cal Bf6e8,Be8d6,Bd6c4][%mdl 32]} 20. Nd7 {[%emt 0:04:28] Nb6 is the strong threat.} Bd6 {[%emt 0:00:12]} 21. Bxd6 {[%emt 0:03:37]} Nxd6 {[%emt 0:00:05]} 22. Qc5 {[%emt 0:00:11]} Nc4 {[%emt 0:00:57] [#] White must now prevent ...b6.} 23. Qxa7 {[%emt 0:01:26] An even fight not without its subleties.  Weighted Error Value: White=0.10 (very precise) /Black=0.10 (very precise)} 1/2-1/2

[Event "Chessable English Open-ch 2022"]
[Site "Kenilwoth"]
[Date "2022.05.20"]
[Round "3.5"]
[White "Roberson, Peter T"]
[Black "Boswell, Jacob Connor"]
[Result "1/2-1/2"]
[ECO "B03"]
[WhiteElo "2421"]
[BlackElo "2075"]
[Annotator "TA"]
[PlyCount "136"]
[EventDate "2022.05.18"]
[EventType "swiss"]
[EventCountry "ENG"]
[SourceTitle "playchess.com"]
[Source "ChessBase"]
[SourceQuality "1"]
[TimeControl "5400+30"]

{[%evp 21,136,52,48,-66,-75,-85,-81,-108,20,12,16,8,9,21,8,16,8,0,8,9,22,12,12,9,9,8,10,0,0,0,0,0,0,0,0,-19,0,0,0,0,13,10,13,11,45,30,47,47,44,0,20,0,0,0,68,5,5,0,0,0,5,0,18,8,8,0,0,0,4,4,4,4,4,4,4,4,4,4,4,4,4,0,4,4,5,0,8,8,8,8,8,0,0,0,10,0,0,0,8,3,8,0,0,0,0,0,0,0,0,-151,0,0,0,0,0,0,0]} 1. e4 {[%emt 0:00:03][%cal Be2e4,Be4e5][%mdl 32]} Nf6 {[%emt 0:04:19]} 2. e5 {[%emt 0:00:19]} Nd5 {[%emt 0:00:13]} 3. d4 {[%emt 0:02:32]} d6 {[%emt 0:00:10]} 4. c4 {[%emt 0:00:20]} Nb6 {[%emt 0:00:17]} 5. f4 {[%emt 0:00:20]} dxe5 {[%emt 0:00:53]} 6. fxe5 {[%emt 0:00:20]} Nc6 {[%emt 0:00:48]} 7. Be3 {[%emt 0:00:52]} Bf5 {[%emt 0:00:59]} 8. Nc3 {[%emt 0:02:08]} e6 {[%emt 0:00:19]} 9. Nf3 {[%emt 0:00:31]} Be7 {[%emt 0:00:43]} 10. Be2 {[%emt 0:00:58]} Bg4 {[%emt 0:03:07]} 11. O-O {[%emt 0:04:45]} Qd7 $1 {[%emt 0:04:51]} 12. Qe1 {[%emt 0:09:25] B03: Alekhine's Defence: Four Pawns Attack.} (12. Qd2 $14) 12... Bxf3 $15 {[%emt 0:10:27]} 13. Bxf3 {[%emt 0:11:17] [#] aiming for c5.} Nxc4 $146 {[%emt 0:11:27]} ({Predecessor:} 13... Nxd4 14. Bxb7 Rb8 15. Qf2 Rxb7 16. Bxd4 O-O 17. b3 Qc6 18. Qe3 Nd7 19. Ne4 a5 20. Nf6+ Kh8 21. Rf3 gxf6 22. Rh3 Rg8 {0-1 (22) Zhandildinov,A (1853)-Ankudinova,E (2151) Pavlodar 2013}) 14. Bf2 {[%emt 0:15:51] Black is better.} O-O {[%emt 0:18:48]} (14... Nxd4 $17 15. Rd1 (15. Bxb7 Rb8 $17) 15... Nxf3+ 16. gxf3 Qc6) 15. Qe2 $11 {[%emt 0:01:26]} Nb6 {[%emt 0:01:52]} 16. Rad1 {[%emt 0:00:14]} Nd5 {[%emt 0:04:07]} 17. Nxd5 {[%emt 0:11:34]} exd5 {[%emt 0:00:21]} 18. Bg4 {[%emt 0:00:37]} Qd8 {[%emt 0:03:44]} 19. Rd3 {[%emt 0:04:17]} Bg5 {[%emt 0:15:23]} 20. Be1 {[%emt 0:13:00]} f6 {[%emt 0:03:08]} 21. h4 {[%emt 0:03:29]} Bh6 {[%emt 0:00:45]} 22. exf6 {[%emt 0:03:54]} Rxf6 {[%emt 0:00:23]} 23. Rxf6 {[%emt 0:02:42]} Qxf6 {[%emt 0:02:00]} 24. Qe6+ {[%emt 0:01:29]} Kh8 {[%emt 0:01:43] Hoping for ...Qxe6.} 25. Qxd5 {[%emt 0:05:23]} Rd8 {[%emt 0:02:07]} (25... Rf8 26. Rf3 Qe7 27. Rxf8+ Qxf8 28. Bf2 $16) 26. Qe4 {[%emt 0:00:06] And now d5 would win.} Nxd4 {[%emt 0:01:04]} ({Don't take} 26... Rf8 27. Bg3 (27. Rf3 Qd8 $16) 27... Qg6 28. Qxg6 hxg6 29. Bf3 $16 (29. Bxc7 Nxd4 30. Be5 Nf5 $16)) 27. Bf2 {[%emt 0:01:20] This bishop pair is nice.} c5 {[%emt 0:00:46]} 28. Qxb7 {[%emt 0:01:03]} Rf8 {[%emt 0:02:55]} 29. Bf3 {[%emt 0:00:51]} Bf4 {[%emt 0:02:15]} 30. Qxa7 {[%emt 0:01:12]} Qf5 {[%emt 0:00:12] [#]} ({Don't do} 30... Nxf3+ 31. Rxf3 Qd6 32. Kh1 $16 (32. Bxc5 Qd1+ 33. Rf1 Be3+ 34. Kh2 Qxf1 $17)) 31. Bxd4 {[%emt 0:01:07]} cxd4 {[%emt 0:00:51]} 32. Qxd4 {[%emt 0:00:07]} Qa5 {[%emt 0:01:56][%cal Ra5e1]} 33. Qf2 {[%emt 0:02:52] Prevents Qe1+.} Qxa2 {[%emt 0:01:00]} 34. g3 $1 {[%emt 0:00:13]} Be5 {[%emt 0:01:39]} 35. Qc5 {[%emt 0:00:22]} (35. b3 $5 {[%cal Rf2a2]} Qb1+ 36. Bd1 $14) 35... Qb1+ {[%emt 0:01:01]} 36. Bd1 {[%emt 0:00:49][%cal Rc5f8]} Rg8 {[%emt 0:00:29]} 37. Qd5 {[%emt 0:00:39]} h6 {[%emt 0:01:12]} 38. Kg2 {[%emt 0:00:29]} (38. b4 $14) 38... Qxb2+ {[%emt 0:00:25]} 39. Rd2 {[%emt 0:00:11]} (39. Kh3 {is more complex.} Qf2 40. Rf3 Qd4 41. Bb3) 39... Qc3 {[%emt 0:00:29]} 40. Rd3 {[%emt 0:00:46]} Qb2+ {[%emt 0:00:05]} 41. Rd2 {[%emt 0:00:15]} (41. Kh3 {looks sharper.} Qf2 42. Rf3 Qd4 43. Qxd4 Bxd4 44. Bb3) 41... Qb8 {[%emt 0:00:01]} 42. Bc2 {[%emt 0:00:47]} (42. Qd3 {with more complications.} g5 43. h5 Qb4 44. Rc2) 42... Qa8 {[%emt 0:01:13]} 43. Qxa8 {[%emt 0:00:23]} Rxa8 {[%emt 0:00:01][%mdl 4096] Endgame KRB-KRB} 44. Re2 {[%emt 0:00:06]} Bf6 {[%emt 0:00:27]} 45. Bg6 {[%emt 0:00:35]} Rb8 {[%emt 0:00:35]} 46. Kh3 {[%emt 0:00:04]} Kg8 {[%emt 0:00:22]} 47. Re3 {[%emt 0:00:23]} Rc8 {[%emt 0:00:21]} 48. Re4 {[%emt 0:00:38]} Kf8 {[%emt 0:00:57]} 49. Kg4 {[%emt 0:00:17]} Rd8 {[%emt 0:00:24]} 50. Kf3 {[%emt 0:01:01]} Be7 {[%emt 0:00:58]} 51. Rf4+ {[%emt 0:00:55]} Kg8 {[%emt 0:00:24]} 52. Kg4 {[%emt 0:00:21]} Rd6 {[%emt 0:00:51]} 53. Bc2 {[%emt 0:00:28]} g5 {[%emt 0:00:26]} 54. Bb3+ {[%emt 0:00:16]} Kh8 {[%emt 0:00:32]} 55. Rf7 {[%emt 0:00:44]} Bd8 {[%emt 0:00:25]} 56. Rf8+ {[%emt 0:00:30]} Kg7 {[%emt 0:00:19]} 57. Rf7+ {[%emt 0:00:18]} Kh8 {[%emt 0:00:02]} 58. Kh5 {[%emt 0:00:58]} gxh4 {[%emt 0:00:48]} 59. gxh4 {[%emt 0:00:09]} Bb6 {[%emt 0:01:01]} 60. Re7 {[%emt 0:00:42]} Bd4 {[%emt 0:00:26]} 61. Be6 {[%emt 0:00:34] Kg6 would kill now.} Bf6 {[%emt 0:00:31]} 62. Re8+ {[%emt 0:00:01]} Kg7 {[%emt 0:00:27]} 63. Rg8+ {[%emt 0:00:32]} Kh7 {[%emt 0:00:01]} 64. Re8 {[%emt 0:00:40]} Rd4 {[%emt 0:00:54][%csl Gf6][%cal Rd4h4]} 65. Bf5+ {[%emt 0:00:15]} Kg7 {[%emt 0:00:00][%csl Gf6][%cal Rd4h4]} 66. Re4 {[%emt 0:00:32] The position is equal.} Rd5 {[%emt 0:00:53]} 67. Rg4+ {[%emt 0:00:56]} Kf7 {[%emt 0:00:15]} 68. Rf4 $1 {[%emt 0:00:09]} Kg7 {[%emt 0:00:44] Weighted Error Value: White=0.11 (very precise) /Black=0.10 (very precise)} 1/2-1/2

[Event "Chessable English Open-ch 2022"]
[Site "Kenilwoth"]
[Date "2022.05.20"]
[Round "3.6"]
[White "Arkell, Keith C"]
[Black "Willow, Jonah B"]
[Result "1/2-1/2"]
[ECO "D27"]
[WhiteElo "2367"]
[BlackElo "2401"]
[Annotator "TA"]
[PlyCount "64"]
[EventDate "2022.05.18"]
[EventType "swiss"]
[EventCountry "ENG"]
[SourceTitle "playchess.com"]
[Source "ChessBase"]
[SourceQuality "1"]
[TimeControl "5400+30"]

{[%evp 23,64,10,11,3,0,0,11,0,8,0,18,0,0,0,0,0,0,0,0,0,0,-5,-5,-8,-9,-16,-16,-16,-16,-16,-16,-16,-8,-13,-1,-8,0,-7,0,0,0,0,0]} 1. d4 {[%emt 0:12:11]} d5 {[%emt 0:00:09]} 2. Nf3 {[%emt 0:00:05]} Nf6 {[%emt 0:00:04]} 3. c4 {[%emt 0:00:16]} dxc4 {[%emt 0:00:05]} 4. e3 {[%emt 0:00:12]} e6 {[%emt 0:00:09]} 5. Bxc4 {[%emt 0:00:05]} a6 {[%emt 0:00:03]} 6. O-O {[%emt 0:00:47]} c5 {[%emt 0:00:10]} 7. dxc5 {[%emt 0:02:22]} Bxc5 {[%emt 0:02:13]} 8. Qxd8+ {[%emt 0:00:22]} Kxd8 {[%emt 0:00:03]} 9. a3 {[%emt 0:00:32]} Ke7 {[%emt 0:06:51]} 10. b4 {[%emt 0:00:41]} Bd6 {[%emt 0:01:38]} 11. Nbd2 {[%emt 0:02:05][%cal Bb1d2,Bd2b3,Bb3a5][%mdl 32]} b5 {[%emt 0:11:09]} 12. Be2 {[%emt 0:00:11]} Bb7 {[%emt 0:00:04] [#] The position is equal.} 13. Nb3 $146 {[%emt 0:14:37] D27: Queen's Gambit Accepted: Classical main line: 7 e4!? and 7 a4.} ({Predecessor:} 13. Bb2 Nbd7 14. Nb3 Bd5 15. Na5 Nb6 16. Rac1 Rhc8 17. Ne5 Bxe5 18. Bxe5 Nc4 19. Nxc4 Bxc4 20. Bxc4 Rxc4 21. Rxc4 bxc4 {0-1 (56) Terry,R (2503)-Caruana,F (2822) Chess.com INT 2018}) 13... Rc8 {[%emt 0:03:43]} 14. Na5 {[%emt 0:01:28]} Bd5 {[%emt 0:01:34]} 15. Nd4 {[%emt 0:01:48]} Nbd7 {[%emt 0:14:03]} 16. f3 {[%emt 0:04:55]} Nb6 {[%emt 0:31:11]} 17. e4 {[%emt 0:13:18]} Bc4 {[%emt 0:00:08]} ({Resist} 17... Be5 18. Bb2 Bxd4+ 19. Bxd4 $16) 18. Be3 {[%emt 0:16:58]} Bxe2 {[%emt 0:03:52]} 19. Nxe2 {[%emt 0:00:15]} Nc4 {[%emt 0:00:07]} 20. Nxc4 {[%emt 0:00:08]} Rxc4 {[%emt 0:00:03]} 21. Rfc1 {[%emt 0:00:57]} Rac8 {[%emt 0:00:16]} 22. Rxc4 {[%emt 0:01:13]} Rxc4 {[%emt 0:00:13]} 23. Rc1 {[%emt 0:00:12]} Rxc1+ {[%emt 0:02:46]} 24. Nxc1 $11 {[%emt 0:00:10][%mdl 4096] Endgame KBN-KBN} Nd7 {[%emt 0:00:16]} 25. Nd3 {[%emt 0:03:07]} Ne5 {[%emt 0:00:42]} 26. Nxe5 {[%emt 0:00:10]} Bxe5 {[%emt 0:00:03] KB-KB} 27. Bc1 {[%emt 0:00:05] Prevents Bb2.} Kd6 {[%emt 0:10:14]} 28. Kf2 {[%emt 0:01:44]} Kc6 {[%emt 0:01:00]} ({But not} 28... Bxh2 29. g3 $16) 29. h3 {[%emt 0:00:44]} Kb6 {[%emt 0:01:34]} 30. Ke2 {[%emt 0:00:49]} a5 {[%emt 0:00:38]} 31. Kd3 {[%emt 0:00:23]} axb4 {[%emt 0:04:09]} 32. axb4 {[%emt 0:00:06]} Kc6 {[%emt 0:00:04] A rather calm draw.  Weighted Error Value: White=0.03 (flawless) /Black=0.04 (flawless)} 1/2-1/2

[Event "Chessable English Open-ch 2022"]
[Site "Kenilwoth"]
[Date "2022.05.20"]
[Round "3.7"]
[White "Jackson, James P"]
[Black "Haydon, David L"]
[Result "1-0"]
[ECO "B12"]
[WhiteElo "2400"]
[BlackElo "2275"]
[Annotator "TA"]
[PlyCount "85"]
[EventDate "2022.05.18"]
[EventType "swiss"]
[EventCountry "ENG"]
[SourceTitle "playchess.com"]
[Source "ChessBase"]
[SourceQuality "1"]
[TimeControl "5400+30"]

{[%evp 11,84,34,23,27,40,27,26,30,31,6,16,0,53,44,44,20,29,24,48,10,16,-16,-20,-87,-24,-48,-48,-54,136,144,257,236,222,250,1391,1383,1517,1507,1215,1558,1558,1583,1544,1442,1303,1582,1529,1472,1434,831,778,0,1379,1308,1164,1336,1299,1193,3616,3073,29975,990,29992,29993,29993,29955,3409,3312,29975,29976,29994,29995,29998,29999,29999]} 1. e4 {[%emt 0:00:05]} c6 {[%emt 0:00:46]} 2. d4 {[%emt 0:00:06]} d5 {[%emt 0:00:05]} 3. e5 {[%emt 0:00:05]} Bf5 {[%emt 0:00:41]} 4. Nf3 {[%emt 0:00:44]} e6 {[%emt 0:00:54]} 5. Be2 {[%emt 0:00:18]} Nd7 {[%emt 0:00:50]} 6. O-O {[%emt 0:00:42]} h6 {[%emt 0:01:49]} 7. a4 {[%emt 0:02:08][%cal Ba2a4,Ba4a5][%mdl 32] 7.c3 is setting a new trend. B12: Caro-Kann: Advance Variation.} g5 {[%emt 0:07:49] [#]} 8. Ne1 $146 {[%emt 0:08:35]} ({Predecessor:} 8. Na3 Bg7 9. c3 f6 10. Re1 g4 11. Nh4 fxe5 12. Nxf5 exf5 13. dxe5 Ne7 14. f4 gxf3 15. Bxf3 {½-½ (27) Serazeev,A (2511)-Ivanov,B (2401) ICCF email 2014}) 8... c5 {[%emt 0:03:50]} 9. c3 {[%emt 0:05:25] White has an edge.} Ne7 {[%emt 0:02:45]} 10. Bd3 {[%emt 0:04:55]} Rc8 {[%emt 0:12:59]} 11. Be3 {[%emt 0:11:09]} Rg8 {[%emt 0:06:53]} (11... Bg7 $11) 12. a5 $14 {[%emt 0:04:05]} a6 {[%emt 0:02:58]} 13. b4 {[%emt 0:08:33][%cal Rb4c5]} c4 {[%emt 0:11:47]} 14. Be2 {[%emt 0:04:41]} g4 {[%emt 0:07:48]} 15. Na3 {[%emt 0:04:56]} f6 {[%emt 0:05:30]} 16. exf6 {[%emt 0:17:59]} Nxf6 {[%emt 0:31:06]} 17. f3 {[%emt 0:04:16] Prevents Be4.} (17. Nb1 $11 {keeps the balance.}) 17... gxf3 {[%emt 0:00:00]} (17... g3 $17 {aiming for ...gxh2+.} 18. hxg3 Rxg3) 18. Nxf3 {[%emt 0:00:36]} Ng6 {[%emt 0:00:00]} (18... Ne4 19. Ne5 Nc6 20. Bh5+ Ke7 21. Nf7 $14) 19. Ne5 {[%emt 0:03:59]} Nxe5 $2 {[%emt 0:00:00]} (19... Bd6 $1 $15 20. Nxg6 (20. Qa4+ $2 Ke7 $19) 20... Rxg6) 20. dxe5 $16 {[%emt 0:00:08] Black is on the road to losing.} Ne4 {[%emt 0:00:00]} (20... Ng4 $16 {was called for.} 21. Bf4 Qh4) 21. Bh5+ $18 {[%emt 0:00:59]} Ke7 {[%emt 0:00:00]} 22. Nc2 {[%emt 0:08:25][%cal Ba3c2,Bc2d4,Bd4f5][%mdl 32] Chess con chili.} Qc7 $2 {[%emt 0:00:00] [#]} (22... Rc6 23. Nd4 Qd7 24. Nxc6+ (24. Qe1 Kd8 $18) 24... bxc6) 23. Rxf5 $1 {[%emt 0:01:00][%mdl 512]} exf5 {[%emt 0:00:00]} (23... Kd7 24. Qf3) 24. Qxd5 {[%emt 0:00:05] Intending Qf7+ and mate.} Rg7 {[%emt 0:00:00] Against Qf7+} 25. Nd4 {[%emt 0:00:23][%cal Rd4f5]} Qd7 {[%emt 0:00:00] [#]} 26. Nxf5+ $1 {[%emt 0:04:09][%mdl 512]} Qxf5 {[%emt 0:00:00]} 27. Qxb7+ {[%emt 0:00:04]} Qd7 {[%emt 0:00:00]} 28. Qxe4 {[%emt 0:00:05] Qh4+ would kill now.} Qc6 {[%emt 0:00:00]} 29. Bc5+ {[%emt 0:01:45]} Kd7 {[%emt 0:00:00]} 30. Bg4+ {[%emt 0:00:19]} Ke8 {[%emt 0:00:00]} 31. Bh5+ {[%emt 0:00:55]} (31. Qxc6+ $142 Rxc6 32. Bh5+ Rcg6 33. Bxg6+ Rxg6 34. Bxf8 Kxf8 35. Rf1+ Ke8 36. Rf6) 31... Kd7 $1 {[%emt 0:00:00]} 32. Rd1+ {[%emt 0:01:49]} Kc7 {[%emt 0:00:00]} 33. Bb6+ {[%emt 0:00:54]} Kb8 {[%emt 0:00:00]} 34. Qe2 {[%emt 0:00:09] Threatens to win with Bf3.} Be7 {[%emt 0:00:00]} 35. Bf3 {[%emt 0:00:09]} Qg6 {[%emt 0:00:00]} 36. Qe3 {[%emt 0:01:01]} (36. e6 $142 Bf6 37. Rd7 Rxd7 38. exd7 Rh8 39. Qd2 Be7 40. Qd5 Qb1+ 41. Kf2) 36... Rf8 {[%emt 0:00:00] [#]} 37. Bc7+ $1 {[%emt 0:01:03][%mdl 512]} Kc8 {[%emt 0:00:00]} 38. Bd6 {[%emt 0:00:05]} Bxd6 {[%emt 0:00:00]} 39. Rxd6 {[%emt 0:00:48]} Qg5 {[%emt 0:00:00]} 40. Rc6+ {[%emt 0:00:40] White mates.} Kb8 {[%emt 0:04:37]} 41. Rb6+ {[%emt 0:00:32]} Ka7 {[%emt 0:00:05]} 42. Rb7+ {[%emt 0:00:28]} Ka8 {[%emt 0:00:09]} 43. Qa7# {[%emt 0:01:04] Weighted Error Value: White=0.38/Black=1.01} 1-0